Cogmind - Beta 16 --- EXPLORER MODE // 2026.02.05 @ 04:11:37 Player: Aelali Result: Self-destructed Performance ------------- Evolutions (3) 1500 Regions Visited (7) 1400 Robots Destroyed (26) 130 Value Destroyed (485) 485 Prototype IDs (6) 120 Alien Tech Used (0) 0 Bonus (481) 481 TOTAL SCORE: 4116 Bonus ------- Follower Combat Kills 181 Aligned with FarCom 300 Cogmind --------- Core Integrity 586/700 Matter 300/300 Energy 149/150 System Corruption 2% Temperature Cool (18) Movement Flying (29) Location -7/Storage Parts ------- > --- POWER (2) -------- Micro Nuclear Core > --- PROPULSION (5) --- VTOL Module VTOL Module Improved VTOL Module > --- UTILITY (5) ------ Small Storage Unit Transport Network Coupler ECM Suite Propulsion Shielding > --- WEAPON (2) ------- (None) > --- INVENTORY (8) ---- Light Deuterium Engine Aerolev Unit High-capacity Battery (250) Light Armor Plating Component Analysis Suite Improved Field Recycling Unit (0) Decoy Drone Bay (16/16) Peak State ------------ > --- POWER ------------ Backup Power III Micro Nuclear Core > --- PROPULSION ------- Aerolev Unit VTOL Module Cesium-ion Thruster Cesium-ion Thruster Improved VTOL Module > --- UTILITY ---------- Small Storage Unit High-capacity Battery Transport Network Coupler ECM Suite Propulsion Shielding > --- WEAPON ----------- Remote Datajack Mace > --- INVENTORY -------- Light Deuterium Engine Flight Unit VTOL Module Light Armor Plating Improved Field Recycling Unit Decoy Drone Bay [Rating: 36] Favorites ----------- Power Light Ion Engine Engine Light Ion Engine Power Core Micro Nuclear Core Propulsion Flight Unit Leg Aluminum Leg Hover Unit Aerolev Unit Flight Unit Flight Unit Utility Small Storage Unit Device ECM Suite Storage Small Storage Unit Processor Transport Network Coupler Protection Propulsion Shielding Weapon Light Assault Rifle Energy Gun Medium Laser Energy Cannon Light EM Pulse Cannon Ballistic Gun Light Assault Rifle Launcher Rocket Launcher Special Weapon Remote Datajack Impact Weapon Mace Special Melee Weapon Datajack Build | -11 -10 -10 -10 -9 -8 -7 -7 ------- Run | Yrd Mat Min Exi Min Mat Fac Sto Slots Evolved 7 | . 1 . . . 4 2 . Power 1 | . . . . . . 1 . Propulsion 3 | . 1 . . . 2 . . Utility 3 | . . . . . 2 1 . Weapon . | . . . . . . . . Parts Attached 37 | 7 10 1 . 6 6 2 5 Power 4 | 1 1 1 . . . . 1 Engine 3 | 1 1 1 . . . . . Core 1 | . . . . . . . 1 Reactor . | . . . . . . . . Propulsion 14 | 2 4 . . 3 3 1 1 Treads . | . . . . . . . . Leg 3 | 2 1 . . . . . . Wheel . | . . . . . . . . Hover 1 | . . . . . . . 1 Flight 10 | . 3 . . 3 3 1 . Utility 11 | 3 2 . . 2 3 . 1 Device 6 | 2 1 . . 1 1 . 1 Storage 3 | 1 1 . . . 1 . . Processor 1 | . . . . . 1 . . Hackware . | . . . . . . . . Protection 1 | . . . . 1 . . . Artifact . | . . . . . . . . Weapon 8 | 1 3 . . 1 . 1 2 Energy Gun 1 | 1 . . . . . . . Energy Cannon 1 | . . . . . . . 1 Ballistic Gun 1 | . 1 . . . . . . Ballistic Cannon . | . . . . . . . . Launcher 1 | . . . . 1 . . . Special Weapon 1 | . . . . . . 1 . Impact Weapon 1 | . . . . . . . 1 Slashing Weapon . | . . . . . . . . Piercing Weapon . | . . . . . . . . Special Melee Weapon 2 | . 2 . . . . . . Unidentified Prototypes 2 | . . . . 1 . . 1 Parts Lost 11 | . 1 2 . . . 1 7 Power 3 | . . 1 . . . 1 1 Propulsion 3 | . . . . . . . 3 Utility 1 | . . . . . . . 1 Weapon 4 | . 1 1 . . . . 2 Highest Loss Streak 7 | . 1 2 . . . 1 7 To Critical Strikes 1 | . . 1 . . . . . Average Backups 6 | 4 6 6 6 7 5 6 6 Power . | . 1 . . . . . . Propulsion . | . . . . . . 1 1 Utility 4 | 2 4 5 5 5 3 3 3 Weapon 1 | 1 1 1 1 1 . . . Tool/Special . | . . . . . . . . Unused Backups 9 | . 2 . . 1 . 1 5 Power 1 | . . . . . . . 1 Propulsion . | . . . . . . . . Utility 6 | . 1 . . 1 . 1 3 Weapon 1 | . 1 . . . . . . Tool/Special 1 | . . . . . . . 1 Average Slot Usage (%) 87 | . 85 93 87 86 87 84 94 Engine 10 | . 12 10 12 12 8 12 6 Leg 6 | . 17 . . . . . . Flight 28 | . 15 37 37 37 39 35 34 Device 9 | . 12 12 12 11 1 . 10 Storage 12 | . 12 12 12 11 14 14 10 Processor 2 | . . . . . 6 7 7 Protection 2 | . . . . . 8 7 7 Energy Gun 3 | . 9 . . . . . . Ballistic Gun 4 | . 2 12 12 8 1 . . Launcher 1 | . . . . 3 6 6 . Special Melee Weapon 1 | . 2 7 . . . . . Peak Build Rating 36 | 6 8 9 7 21 20 29 36 Average Rating 11 | 5 6 7 7 9 18 22 32 On Entrance 10 | . 6 8 7 7 11 20 28 Avg Prop Armor Cover (%) . | . . . . . . . . Naked Turns . | . . . . . . . . Heaviest Build 25 | 17 17 12 11 18 17 20 25 Greatest Support 30 | 20 30 12 12 12 27 27 27 Greatest Overweight (x) 1 | . 1 . . 1 . . 1 Average Overweight (x) . | . . . . . . . . Largest Inventory Capacity 10 | 10 10 8 8 8 8 8 8 Average Capacity 8 | 8 8 8 8 7 7 8 8 Most Carried 8 | 6 8 8 7 8 8 8 8 Average Carried 6 | 4 6 6 6 7 6 7 7 Final Capacity 10 | 10 8 8 8 8 8 8 8 Final Carried 8 | 6 7 6 7 8 8 7 8 Class Distribution -------------------- 66% | Hacker-Mutant 17% | Hacker-Sprinter 12% | Scientist-Sprinter Dominant Class ---------------- Hacker-Mutant | -10/Materials Hacker-Mutant | -10/Mines Hacker-Mutant | -10/Exiles Hacker-Sprinter | -9/Mines Hacker-Sprinter | -8/Materials Scientist-Sprinter | -7/Factory Hacker-Sprinter | -7/Storage Resources | -11 -10 -10 -10 -9 -8 -7 -7 ----------- Run | Yrd Mat Min Exi Min Mat Fac Sto Matter Collected 1029 | 218 158 32 . . 178 75 368 Remotely . | . . . . . . . . Salvage Created 510 | . 334 42 . . 134 . . Parts 38 | . 16 7 . . 15 . . Haulers Intercepted 2 | . 2 . . . . . . Recyclers Shooed 1 | . . 1 . . . . . Parts Field Recycled . | . . . . . . . . Retrieved Matter . | . . . . . . . . Parts Self-Destructed . | . . . . . . . . Prevented . | . . . . . . . . Parts Restored . | . . . . . . . . Kills | -11 -10 -10 -10 -9 -8 -7 -7 ------- Run | Yrd Mat Min Exi Min Mat Fac Sto Combat Hostiles Destroyed 17 | . 7 2 . . 8 . . Guns 8 | . 6 2 . . . . . AOE 8 | . . . . . 8 . . Classes Destroyed 7 | . 5 1 . . 1 . . Builder 3 | . . 1 . . 2 . . Hauler 2 | . 2 . . . . . . Recycler 1 | . 1 . . . . . . Watcher 3 | . 2 . . . 1 . . Swarmer 11 | . 6 2 . . 3 . . Grunt 3 | . 1 . . . 2 . . Sentry 3 | . . . . . 3 . . Best Kill Streak 7 | . 3 3 . . 7 . . Combat Bots Only 4 | . 2 2 . . 4 . . Max Kills in Single Turn 2 | . 1 1 . . 2 . . Gunslinging . | . . . . . . . . Exploded 2 | . . . . . 2 . . Melee . | . . . . . . . . Uniques/NPCs Destroyed . | . . . . . . . . Combat | -11 -10 -10 -10 -9 -8 -7 -7 -------- Run | Yrd Mat Min Exi Min Mat Fac Sto Hostile Shots Fired 238 | . 52 14 . . 40 16 116 Missed 114 | . 21 6 . . 24 11 52 Hits 124 | . 31 8 . . 16 5 64 Projectile 124 | . 31 8 . . 16 5 64 Critical Strikes 4 | . . 2 . . . 1 1 Actively Blocked 1 | . . . . . . . 1 Part Disruptions 1 | . . . . . . . 1 Actively Blocked 1 | . . . . . . . 1 Damage Taken 1002 | . 224 93 . . 182 47 456 Core 293 | . 78 33 . . 68 13 101 Absorbed by Shields . | . . . . . . . . Redirected to Shielding 33 | . . . . . 5 3 25 Ignored by Resistances 646 | . 149 61 . . 112 28 296 Regen/Repaired (Parts) 16 | . 16 . . . . . . Core Remaining (%) 80 | 100 . . . 55 87 . . Volleys Fired 85 | 1 35 16 . 1 25 1 6 Largest 1 | 1 1 1 . 1 1 1 1 Hottest 56 | 50 50 20 . 33 33 5 56 Shots Fired 85 | 1 35 16 . 1 25 1 6 Gun 52 | 1 35 16 . . . . . Cannon 2 | . . . . . . . 2 Launcher 26 | . . . . 1 25 . . Special 5 | . . . . . . 1 4 Kinetic 31 | . 15 16 . . . . . Thermal 21 | 1 20 . . . . . . Explosive 26 | . . . . 1 25 . . Electromagnetic 2 | . . . . . . . 2 Robot Hit Streak 32 | . 32 5 . . 13 4 8 Robot Miss Streak 2 | . 2 2 . . 1 . 1 Penetration Max . | . . . . . . . . Secondary Targets . | . . . . . . . . Shots Hit Robots 85 | . 41 20 . . 18 1 5 Core Hits 47 | . 18 7 . . 22 . . Critical Kills . | . . . . . . . . Critical Parts Destroyed . | . . . . . . . . Critical Strikes 1 | . 1 . . . . . . Burn 1 | . 1 . . . . . . Melee Attacks 17 | . 8 9 . . . . . Impact . | . . . . . . . . Slashing . | . . . . . . . . Piercing . | . . . . . . . . Sneak Attacks 8 | . 6 2 . . . . . Combat Hostiles . | . . . . . . . . Follow-up Attacks . | . . . . . . . . Damage Inflicted 1577 | . 359 118 . . 1069 . 31 Guns 474 | . 356 118 . . . . . Cannons 29 | . . . . . . . 29 Explosions 1069 | . . . . . 1069 . . Melee . | . . . . . . . . Ramming 5 | . 3 . . . . . 2 Kinetic 223 | . 105 118 . . . . . Thermal 251 | . 251 . . . . . . Explosive 1069 | . . . . . 1069 . . Electromagnetic 29 | . . . . . . . 29 Impact . | . . . . . . . . Slashing . | . . . . . . . . Piercing . | . . . . . . . . Highest Corruption 2 | . 1 1 1 1 . . 2 Average Corruption 1 | . 1 1 1 1 . . 2 Corruption Purged . | . . . . . . . . Corruption Blocked . | . . . . . . . . Effects 5 | . . 2 2 1 . . . Message Errors 2 | . . 1 1 . . . . Heat Flow Errors 1 | . . . . 1 . . . Data Loss (minor) 2 | . . 1 1 . . . . Overload Shots . | . . . . . . . . Overflow Damage 12 | . . . . . 12 . . Projectiles . | . . . . . . . . Explosions 12 | . . . . . 12 . . Melee . | . . . . . . . . Knockbacks . | . . . . . . . . Impact . | . . . . . . . . Kinetic . | . . . . . . . . Secondary . | . . . . . . . . Self-Inflicted Damage 34 | . 1 . . . 32 . 1 Shots 2 | . . . . . 2 . . Rammed 3 | . 1 . . . . . 2 Targets Rammed 3 | . 1 . . . . . 2 Kicked . | . . . . . . . . Crushed . | . . . . . . . . Highest Temperature 139 | 10 108 6 . 122 39 130 139 Average Temperature 39 | 7 27 3 . 65 11 62 35 Received Heat Transfer 300 | . 87 . . . 108 . 105 Siege Activations . | . . . . . . . . Martial Activations . | . . . . . . . . Shielding Activations . | . . . . . . . . Robots Disrupted . | . . . . . . . . Combat Hostiles . | . . . . . . . . Robots Corrupted . | . . . . . . . . Combat Hostiles . | . . . . . . . . Parts Fried . | . . . . . . . . Impact Corruptions . | . . . . . . . . Robots Melted 1 | . 1 . . . . . . Combat Hostiles 1 | . 1 . . . . . . Parts Melted 7 | . 7 . . . . . . Heat Transferred 814 | . 814 . . . . . . Parts Sabotaged . | . . . . . . . . Parts Stolen . | . . . . . . . . Parts Stripped . | . . . . . . . . Power Chain Reactions . | . . . . . . . . Alert | -11 -10 -10 -10 -9 -8 -7 -7 ------- Run | Yrd Mat Min Exi Min Mat Fac Sto Maximum Alert Level 1 | . . . . . 1 . . Low Security (%) 92 | 100 100 100 . 100 48 100 100 Level 1 7 | . . . . . 52 . . Level 2 . | . . . . . . . . Level 3 . | . . . . . . . . Level 4 . | . . . . . . . . Level 5 . | . . . . . . . . High Security . | . . . . . . . . Max Security . | . . . . . . . . Peak Influence 281 | . 50 50 . 6 281 87 67 Initial 87 | . . 2 . . . 87 . Average 29 | . 7 7 . . 148 52 7 Influence Increases 1045 | . 279 55 . 6 461 57 187 Destroy 0b10 Robot/C 460 | . 140 40 . . 160 . 120 Destroy 0b10 Robot/NC 45 | . 25 5 . . 15 . . Destroy Leader 130 | . 48 10 . . 52 . 20 Allied During Kill 22 | . . . . . . . 22 Trap Triggered on 0b10 20 | . 20 . . . . . . Successful Hack 65 | . 31 . . . 12 12 10 Disable Machine 12 | . . . . . 12 . . Destroy Structure 111 | . . . . 6 105 . . Partial Spotted 60 | . 15 . . . . 30 15 Lose Combat Pursuer 120 | . . . . . 105 15 . Influence Decreases 1045 | . 270 64 . 6 195 323 187 Entered New Map 186 | . . 7 . . . 179 . Time Decay 695 | . 260 52 . 6 195 135 47 Lost Part 24 | . 10 5 . . . 9 . Lost Ally 140 | . . . . . . . 140 Squads Dispatched 18 | . 4 . . . 6 4 4 Investigation 9 | . 4 . . . 2 1 2 Extermination 2 | . . . . . . 1 1 Reinforcement 3 | . . . . . 1 2 . Assault . | . . . . . . . . Garrison 4 | . . . . . 3 . 1 Intercept . | . . . . . . . . Searches Triggered . | . . . . . . . . Construction Impeded 1 | . . . . . 1 . . Haulers Reinforced . | . . . . . . . . Active Scanning Responses . | . . . . . . . . Cargo Convoy Interrupts . | . . . . . . . . Stealth | -11 -10 -10 -10 -9 -8 -7 -7 --------- Run | Yrd Mat Min Exi Min Mat Fac Sto Distress Signals 5 | . 1 . . . 3 . 1 Communications Jammed . | . . . . . . . . Distress Signals . | . . . . . . . . Times Spotted 101 | . 31 7 . . 26 9 28 Peak Tracking Total 9 | . 5 7 . . 8 5 9 Tactical Retreats 21 | . 11 1 . . 2 2 5 ECM-based Alert Blocks 40 | . 19 1 . . . 6 14 Traps | -11 -10 -10 -10 -9 -8 -7 -7 ------- Run | Yrd Mat Min Exi Min Mat Fac Sto Traps Triggered 3 | . 1 . . . . . 2 Indirectly . | . . . . . . . . Trap Hack Attempts . | . . . . . . . . Triggered . | . . . . . . . . Disarmed . | . . . . . . . . Reprogrammed 11 | . 11 . . . . . . Reused 2 | . 2 . . . . . . Traps Extracted . | . . . . . . . . Installed . | . . . . . . . . Triggered 2 | . 2 . . . . . . Machines | -11 -10 -10 -10 -9 -8 -7 -7 ---------- Run | Yrd Mat Min Exi Min Mat Fac Sto Machines Disabled 3 | . . . . . 3 . . Max in Single Turn 1 | . . . . . 1 . . Machines Repaired . | . . . . . . . . Machines Dismantled . | . . . . . . . . Machines Sabotaged . | . . . . . . . . Overloaded Fab Kills . | . . . . . . . . Hacking | -11 -10 -10 -10 -9 -8 -7 -7 --------- Run | Yrd Mat Min Exi Min Mat Fac Sto Machines Accessed 23 | . 7 . 2 1 6 3 4 Terminals 14 | . 6 . . . 3 1 4 Fabricators . | . . . . . . . . Repair Stations 2 | . 1 . . . . 1 . Recycling Units . | . . . . . . . . Scanalyzers 3 | . . . . . 2 1 . Garrison Access 1 | . . . . . 1 . . Total Hacks 95 | . 30 . 16 1 23 9 16 Successful 76 | . 22 . 16 1 21 7 9 Failed 19 | . 8 . . . 2 2 7 Catastrophic . | . . . . . . . . Database Lockouts . | . . . . . . . . Manual . | . . . . . . . . Terminals 52 | . 25 . . . 9 2 16 Fabricators . | . . . . . . . . Repair Stations 8 | . 5 . . . . 3 . Recycling Units . | . . . . . . . . Scanalyzers 16 | . . . . . 12 4 . Garrison Access 2 | . . . . . 2 . . Terminal Hacks 53 | . 19 . 16 1 7 1 9 Record 30 | . 8 . 16 . 3 . 3 Robot Analysis 1 | . 1 . . . . . . Prototype ID Bank 2 | . 1 . . . 1 . . Open Door 2 | . . . . 1 . . 1 Open DSF 1 | . . . . . . 1 . Branch Access Points 1 | . 1 . . . . . . Emergency Access Points 2 | . 2 . . . . . . Fabricator Index 1 | . . . . . . . 1 Alert Level 3 | . 1 . . . 1 . 1 Locate Traps 4 | . 2 . . . 1 . 1 Reprogram Traps 2 | . 2 . . . . . . Surveillance Status 1 | . . . . . 1 . . Investigation Status 1 | . . . . . . . 1 Hauler Manifests 2 | . 1 . . . . . 1 Fabricator Hacks . | . . . . . . . . Repair Station Hacks 5 | . 3 . . . . 2 . Scan Component 3 | . 2 . . . . 1 . Repair 1 | . 1 . . . . . . Refit 1 | . . . . . . 1 . Recycling Unit Hacks . | . . . . . . . . Scanalyzer 16 | . . . . . 12 4 . Insert Component 5 | . . . . . 3 2 . Analyze 6 | . . . . . 4 2 . Retrieve Study 5 | . . . . . 5 . . Garrison Access Hacks 2 | . . . . . 2 . . Unlock Access 1 | . . . . . 1 . . Coupler Status 1 | . . . . . 1 . . Unauthorized Hacks . | . . . . . . . . Terminals . | . . . . . . . . Fabricators . | . . . . . . . . Repair Stations . | . . . . . . . . Recycling Units . | . . . . . . . . Scanalyzers . | . . . . . . . . Garrison Access . | . . . . . . . . Data Cores Recovered . | . . . . . . . . Used . | . . . . . . . . Hacking Detections 18 | . 7 . . . 5 2 4 Full Trace Events 12 | . 5 . . . 4 1 2 Feedback Events 1 | . 1 . . . . . . Corruption 1 | . 1 . . . . . . Feedback Blocked . | . . . . . . . . Robot Schematics Acquired . | . . . . . . . . Robots Built . | . . . . . . . . Authchips . | . . . . . . . . Time . | . . . . . . . . Total Robot Build Rating . | . . . . . . . . Part Schematics Acquired 4 | . . . . . 3 1 . Parts Built . | . . . . . . . . Authchips . | . . . . . . . . Time . | . . . . . . . . Total Part Build Rating . | . . . . . . . . Part Studies Acquired 5 | . . . . . 5 . . Parts Repaired 1 | . 1 . . . . . . Time 13 | . 13 . . . . . . Parts Recycled . | . . . . . . . . Recycled Matter . | . . . . . . . . Retrieved Matter . | . . . . . . . . Retrieved Components . | . . . . . . . . Parts Scanalyzed 5 | . . . . . 3 2 . Part Schematics Acquired 4 | . . . . . 3 1 . Parts Damaged 1 | . . . . . . 1 . Bothacking | -11 -10 -10 -10 -9 -8 -7 -7 ------------ Run | Yrd Mat Min Exi Min Mat Fac Sto Used RIF Installer . | . . . . . . . . Robots Hacked 10 | . 4 3 . . . 1 2 Non-combat 7 | . 3 3 . . . . 1 Combat 3 | . 1 . . . . 1 1 Robot Hacks Applied 12 | . 6 3 . . . 1 2 parse_system 7 | . 4 1 . . . 1 1 no_distress 5 | . 2 2 . . . . 1 Relay Couplers Released . | . . . . . . . . Fabnet Peak Effective % . | . . . . . . . . Robots Rewired . | . . . . . . . . Allies Hacked . | . . . . . . . . Hacks Repelled . | . . . . . . . . Allies | -11 -10 -10 -10 -9 -8 -7 -7 -------- Run | Yrd Mat Min Exi Min Mat Fac Sto Total Allies 10 | . . . . . . . 10 Largest Group 10 | . . . . . . . 10 Highest-Rated Group 173 | . . . . . . . 173 Highest-Rated Ally 29 | . . . . . . . 29 Total Orders 11 | . . . . . . . 11 GUARD 10 | . . . . . . . 10 AID 1 | . . . . . . . 1 Ally Attacks 46 | . . . . . . . 46 Total Damage 505 | . . . . . . . 505 Kills 7 | . . . . . . . 7 Allies Corrupted . | . . . . . . . . Allies Melted . | . . . . . . . . Intel | -11 -10 -10 -10 -9 -8 -7 -7 ------- Run | Yrd Mat Min Exi Min Mat Fac Sto Active Infowar (turns) 2628 | 182 996 246 303 191 284 200 226 Sensors 99 | . . . . . . . 99 Terrain 17 | 17 . . . . . . . T.N.C. 698 | . . . . . 272 200 226 ECM 2167 | 179 996 246 303 191 12 14 226 Robot Analysis Total 1 | . 1 . . . . . . Derelict Logs Recovered 1 | . . 1 . . . . . Drone Launches . | . . . . . . . . Drone Recoveries . | . . . . . . . . Exploration | -11 -10 -10 -10 -9 -8 -7 -7 ------------- Run | Yrd Mat Min Exi Min Mat Fac Sto Turns Passed 2707 | 201 996 246 303 210 325 200 226 Spaces Moved 4676 | 96 946 419 887 323 659 799 547 Core 14 | 14 . . . . . . . Treads . | . . . . . . . . Legs 400 | 82 318 . . . . . . Wheels . | . . . . . . . . Hover . | . . . . . . . . Flight 4262 | . 628 419 887 323 659 799 547 Fastest Speed 23 | 50 34 34 34 30 24 23 23 Average Speed 40 | 109 76 34 34 42 24 23 25 Slowest Speed 120 | 120 120 34 34 114 30 24 105 Overloaded Moves . | . . . . . . . . Propulsion Burnouts . | . . . . . . . . Robots Hopped 36 | . 2 6 . 1 3 9 15 Potential Cave-ins . | . . . . . . . . Cave-ins Triggered . | . . . . . . . . Exploration Rate (%) 57 | 8 89 67 93 71 55 14 63 Regions Visited 7 Branch Regions 4 Pre-discovered Areas 2 | . . 2 . . . . . Known Exits Taken 7 | 1 1 1 1 1 1 1 . Unknown Exits Taken . | . . . . . . . . Scrap Searched . | . . . . . . . . Spaces Dug 51 | . . . . 9 42 . . Terrain Destroyed 170 | . . . . 9 161 . . Melee . | . . . . . . . . Projectile . | . . . . . . . . AOE 170 | . . . . 9 161 . . Terrain Rammed . | . . . . . . . . Walls Destroyed . | . . . . . . . . Machines Disabled . | . . . . . . . . Actions | -11 -10 -10 -10 -9 -8 -7 -7 --------- Run | Yrd Mat Min Exi Min Mat Fac Sto Total 5363 | 191 1185 499 887 395 796 798 612 Wait 487 | 75 163 59 . 51 88 . 51 Move 4601 | 95 941 406 886 320 652 781 520 Hop 32 | . 2 6 . 1 3 8 12 Pick Up 49 | 12 14 1 1 5 8 2 6 Fast Attach 5 | . . . . 2 . . 3 Attach 33 | 7 8 1 . 2 10 2 3 Detach 9 | 1 1 . . 1 5 1 . Swap 15 | . 3 . . 4 1 1 6 Drop 27 | . 9 1 . 8 4 2 3 Fire 85 | 1 35 16 . 1 25 1 6 Melee 17 | . 8 9 . . . . . Ram 3 | . 1 . . . . . 2 Kick . | . . . . . . . . Crush . | . . . . . . . . Escape Stasis . | . . . . . . . . Rewire . | . . . . . . . . Trap . | . . . . . . . . Miscellaneous . | . . . . . . . . Route ------- -11/Scrapyard -10/Materials (discovered 4 exits: *Mat x3 / *Min) -10/Mines (discovered 3 exits: *Mat / *Exi / *Sub) -10/Exiles (discovered 2 exits: *Min x2) -9/Mines (discovered 2 exits: *Mat x2) -8/Materials (discovered 3 exits: *Fac x2 / Gar) -7/Factory (discovered 3 exits: *Fac / *Sto / *Low) -7/Storage History --------- Turn | Location | Event 11 | -11/Scrapyard | Identified exit to Materials 11 | -11/Scrapyard | Discovered exit to Materials (range 14) 202 | -11/Scrapyard | Entered Materials 202 | -10/Materials | Evolved 1 slot: Propulsion x1 302 | -10/Materials | Identified exit to Materials 302 | -10/Materials | Discovered exit to Materials (range 3) 313 | -10/Materials | Build established: Hacker-Mutant 862 | -10/Materials | Identified exit to Mines 862 | -10/Materials | Discovered exit to Mines (range 14) 956 | -10/Materials | Discovered exit to Materials (range 16) 1129 | -10/Materials | Discovered exit to Materials (range 16) 1176 | -10/Materials | Repaired Flight Unit 1198 | -10/Materials | Entered Mines 1200 | -10/Mines | Met a Derelict bent on vengeance 1229 | -10/Mines | Discovered exit to Materials (range 9) 1256 | -10/Mines | Learned location of Storage (-7) 1301 | -10/Mines | Assembled infested the area 1335 | -10/Mines | Met 8R-AWN 1372 | -10/Mines | Learned location of Mines (-9) 1409 | -10/Mines | Identified exit to Subcaves 1409 | -10/Mines | Discovered exit to Subcaves (range 11) 1443 | -10/Mines | Identified exit to Exiles 1443 | -10/Mines | Discovered exit to Exiles (range 5) 1444 | -10/Mines | Entered Exiles 1450 | -10/Exiles | Identified exit to Mines 1450 | -10/Exiles | Discovered exit to Mines (range 15) 1462 | -10/Exiles | Welcomed by 8R-AWN 1469 | -10/Exiles | Met EX-HEX 1480 | -10/Exiles | Met EX-BIN 1487 | -10/Exiles | Aligned with FarCom system 1487 | -10/Exiles | Given EX-Vault access code 1524 | -10/Exiles | Met EX-DEC 1538 | -10/Exiles | Visited The Gauntlet 1598 | -10/Exiles | Discovered exit to Mines (range 10) 1747 | -10/Exiles | Entered Mines 1754 | -9/Mines | Received a Rocket Launcher from a helpful Derelict 1886 | -9/Mines | Identified exit to Materials 1886 | -9/Mines | Discovered exit to Materials (range 9) 1930 | -9/Mines | Discovered exit to Materials (range 10) 1936 | -9/Mines | Found the Drone Emporium 1938 | -9/Mines | Found Prototype Device 1938 | -9/Mines | Identified Decoy Drone Bay 1957 | -9/Mines | Entered Materials 1957 | -8/Materials | Evolved 4 slots: Propulsion x2, Utility x2 2026 | -8/Materials | Identified exit to Garrison 2104 | -8/Materials | Build established: Hacker-Sprinter 2214 | -8/Materials | Identified exit to Factory 2214 | -8/Materials | Discovered exit to Factory (range 6) 2254 | -8/Materials | Discovered exit to Factory (range 15) 2282 | -8/Materials | Entered Factory 2282 | -7/Factory | Evolved 2 slots: Power x1, Utility x1 2286 | -7/Factory | Identified exit to Factory 2286 | -7/Factory | Discovered exit to Factory (range 13) 2294 | -7/Factory | Identified exit to DSF 2342 | -7/Factory | Identified exit to Lower Caves 2342 | -7/Factory | Discovered exit to Lower Caves (range 14) 2424 | -7/Factory | Build established: Scientist-Sprinter 2480 | -7/Factory | Identified exit to Storage 2480 | -7/Factory | Discovered exit to Storage (range 9) 2482 | -7/Factory | Entered Storage 2620 | -7/Storage | Assisted by bots powering up and referring to "LRC-V3" 2625 | -7/Storage | Garrison activated, responded to threat 2696 | -7/Storage | Lost 10 allies 2708 | -7/Storage | Self-destructed Last Messages --------------- K-01 Serf collects debris. Backup Power III destroyed. Triggered Blade Trap. Massive razor-sharp blades shoot up from within the floor. Cesium-ion Thruster+ severed. Mic. Nuclear Core severed. Acquired Mic. Nuclear Core. Acquired Cesium-ion Thruster+. Flight Unit+ destroyed. P-60 Hacker resets S-27 Virus, system corruption cleaned. Cesium-ion Thruster+ destroyed. [Achievement: Plot Armor] Lgt. EM Pulse Cannon destroyed. Imp. Sensor Array destroyed. Slammed into Y-54 Guardian. Destabilizing: System corrupted (+2). Slammed into Y-54 Guardian. Remote Datajack destroyed. Map ----- +----------------------------------------------------+ | ????????????????????????????? | | ????????????????????????????? | | ????????????????????????????? | | ????????????######??????????? | | ????????????#=! #??????????? | | ????????????#=% #??????????? | | ????######### #?????????## | | ????# / #####?????# | | ????# ### # ####### | | ????# T##!! # + | | ???## ###+#### ##### # | | ???# #??## ##???# # | | ???# #???# #????# #! | | ???# ##### ######+## | | ???# Y pgY Yg ## | | ???#s########### ##### | | ???# #?????????# #???# | | ???# #?????????# #???#! | | ???# #?????????# #???# =! ! | | ???#s#?????????# #???#######/ | | ???#/######????+ #???######*% | | ???# #??s?# #???# !##!% | | ???# """" #a???# #???# = !+[= | | ???# """" # ??? ???# [=#!* | | ??##%"""" + ??? ???# #*= | | ??# @"""" # ??? ???# T##=! | | ??##Y #????###???######!* | | ???########???????????????### | | ????????????????????????????? | | ????????????????????????????? | | ????????????????????????????? | | ????????????????????????????? | | ????????????????????????????? | | ????????????????????????????? | | ????????????????????????????? | | ????????????????????????????? | | ???????Y????????????????????? | | ????????????????????????????? | | ????????????????????????????? | | ????????????????????????????? | | ????????????????????????????? | | ????????????????????????????? | | ????????????????????????????? | | ????????????????????????????? | | ????????????????????????????? | | ????????????????????????????? | | ????????####????????????????? | | ???????#"""#????????????????? | | ?????###"Y"###?############## | | ?????# #?#!] # | +----------------------------------------------------+ Best States ------------- Heat Dissipation 34 Energy Generation 21 Energy Capacity 400 Matter Stores 300 Matter Capacity 300 Sight Range 16 Robot Scan Range 15 Terrain Scan Range 14 Terrain Scan Density 10 ECM Strength 1 Additional Mass Support 6 Resistance: KI 35 Resistance: TH 35 Resistance: EX 35 Resistance: EM 35 Resistance: I 35 Resistance: S 35 Resistance: P 35 Propulsion Shielding 33 Evasion (%) 65 Offensive Hacking 20 Item Schematics ----------------- Cesium-ion Thruster | -8/Materials | Scanalyzed ECM Suite | -8/Materials | Scanalyzed Sml. Storage Unit | -8/Materials | Scanalyzed Datajack | -7/Factory | Scanalyzed Robot Schematics ------------------ None Fabricated ------------ Nothing Repaired ---------- Flight Unit | 20% | -10/Materials Studied --------- Cesium-ion Thruster | -8/Materials | Hacked Lgt. Ion Engine | -8/Materials | Hacked VTOL Module | -8/Materials | Hacked Rocket Launcher | -8/Materials | Hacked Flight Unit | -8/Materials | Hacked Alien Tech Used ----------------- None Achievements -------------- Can't Catch Me Fitting Room Junior Dev Not Today, Chutes Oops Plot Armor Resistances Are Futile Safety First Sixth Sense That Tickles The More The Merrier Tourist Challenges ------------ None Game ------ Seed KineticLightningPerforator Manual? 0 Play Time 01:17:41 Cumulative 4.2 hours Start 2026.02.05 @ 02:46:21 End 2026.02.05 @ 04:11:37 Sessions 1 Manual Loads 0 Difficulty Explorer Special Mode None Game No. 3 Rogue 0 Adventurer 0 Explorer 3 Win Type - Total 0 Types 0/0/0/0/0/0/0/0/0/0 Lore% 5 Gallery% 10 Achievement% 11 Wizard Run 0 Options --------- Layout 1 ASCII 0 Keyboard 0 Movement Mouse Keybinds 0 Fullscreen 2 Font 32/Smallcaps Map View 50x35 Zoom Use 0% Tactical HUD 0 Map Filters NONE Filters NONE Steam 1 RUN: 31394e05-d2d4-41a1-819f-1a010a0be20a